[Event "Live Chess"]
[Site "Chess.com"]
[Date "2023.05.20"]
[Round "-"]
[White "Hacker_2009"]
[Black "Duke_of_Bebington"]
[Result "1-0"]
[WhiteElo "1901"]
[BlackElo "1573"]
[TimeControl "300"]
[EndTime "10:11:17 PDT"]
[Termination "Hacker_2009 won by checkmate"]

1. d4 {[%clk 0:04:59.5]} 1... d5 {[%clk 0:04:58.2]} 2. Nf3 {[%clk 0:04:58.6]}
2... Nf6 {[%clk 0:04:53.7]} 3. e3 {[%clk 0:04:57.1]} 3... Bf5 {[%clk 0:04:51.5]}
4. c4 {[%clk 0:04:55.7]} 4... c6 {[%clk 0:04:50.1]} 5. cxd5 {[%clk 0:04:54.3]}
5... cxd5 {[%clk 0:04:47.6]} 6. Nc3 {[%clk 0:04:53.9]} 6... Nc6 {[%clk
0:04:35.2]} 7. Be2 {[%clk 0:04:49.1]} 7... e6 {[%clk 0:04:33.4]} 8. O-O {[%clk
0:04:46.1]} 8... Bd6 {[%clk 0:04:32.3]} 9. b3 {[%clk 0:04:44.3]} 9... O-O {[%clk
0:04:30.3]} 10. Bb2 {[%clk 0:04:43.5]} 10... Re8 {[%clk 0:04:28]} 11. Rc1 {[%clk
0:04:43.1]} 11... a6 {[%clk 0:04:23]} 12. Na4 {[%clk 0:04:42.5]} 12... b5 {[%clk
0:04:14.3]} 13. Rxc6 {[%clk 0:04:31.2]} 13... bxa4 {[%clk 0:04:11.1]} 14. bxa4
{[%clk 0:04:31.1]} 14... Qb8 {[%clk 0:03:53.3]} 15. Qc1 {[%clk 0:04:23.3]} 15...
Ne4 {[%clk 0:03:41.7]} 16. Ba3 {[%clk 0:04:15.7]} 16... Bxa3 {[%clk 0:03:33.4]}
17. Qxa3 {[%clk 0:04:12.1]} 17... Rc8 {[%clk 0:03:32.7]} 18. Rfc1 {[%clk
0:04:09.3]} 18... Qb7 {[%clk 0:03:28.6]} 19. Rxc8+ {[%clk 0:04:03.2]} 19... Rxc8
{[%clk 0:03:25.8]} 20. Rxc8+ {[%clk 0:04:02.6]} 20... Qxc8 {[%clk 0:03:24.4]}
21. h3 {[%clk 0:04:02.2]} 21... Nc3 {[%clk 0:03:17.5]} 22. Bf1 {[%clk
0:03:55.2]} 22... f6 {[%clk 0:03:13.7]} 23. Qd6 {[%clk 0:03:43.9]} 23... Nxa4
{[%clk 0:03:01.1]} 24. Qxa6 {[%clk 0:03:41.1]} 24... Qc2 {[%clk 0:02:45.6]} 25.
Bb5 {[%clk 0:03:28.8]} 25... Qd1+ {[%clk 0:02:32.9]} 26. Kh2 {[%clk 0:03:25.5]}
26... Nc3 {[%clk 0:02:21.5]} 27. Qc8+ {[%clk 0:03:22.2]} 27... Kf7 {[%clk
0:02:20.4]} 28. Qe8# {[%clk 0:03:21.5]} 1-0

[Event "Live Chess"]
[Site "Chess.com"]
[Date "2023.05.20"]
[Round "-"]
[White "TDCMF"]
[Black "JoshMcK"]
[Result "0-1"]
[WhiteElo "340"]
[BlackElo "1540"]
[TimeControl "300"]
[EndTime "10:11:18 PDT"]
[Termination "JoshMcK won by checkmate"]

1. e4 {[%clk 0:04:58.3]} 1... c6 {[%clk 0:04:58.6]} 2. d4 {[%clk 0:04:56.9]}
2... d5 {[%clk 0:04:58.5]} 3. e5 {[%clk 0:04:56]} 3... c5 {[%clk 0:04:57.2]} 4.
c3 {[%clk 0:04:52.1]} 4... cxd4 {[%clk 0:04:55.6]} 5. cxd4 {[%clk 0:04:51.5]}
5... Nc6 {[%clk 0:04:55.2]} 6. Nf3 {[%clk 0:04:48.1]} 6... Bg4 {[%clk
0:04:54.3]} 7. Nc3 {[%clk 0:04:24]} 7... Bxf3 {[%clk 0:04:49.4]} 8. Qxf3 {[%clk
0:04:22.5]} 8... Nxd4 {[%clk 0:04:47.4]} 9. Qe3 {[%clk 0:04:07.6]} 9... Nc2+
{[%clk 0:04:45.1]} 10. Kd1 {[%clk 0:04:03.3]} 10... Nxe3+ {[%clk 0:04:45]} 11.
fxe3 {[%clk 0:03:58.4]} 11... d4 {[%clk 0:04:44.2]} 12. exd4 {[%clk 0:03:57.4]}
12... Qxd4+ {[%clk 0:04:43.8]} 13. Bd2 {[%clk 0:03:55.8]} 13... O-O-O {[%clk
0:04:39.7]} 14. Nb5 {[%clk 0:03:52.7]} 14... Qxd2# {[%clk 0:04:37.3]} 0-1

[Event "Live Chess"]
[Site "Chess.com"]
[Date "2023.05.20"]
[Round "-"]
[White "Doge_Dandolo"]
[Black "McSlash1"]
[Result "0-1"]
[WhiteElo "2133"]
[BlackElo "2081"]
[TimeControl "300"]
[EndTime "10:11:19 PDT"]
[Termination "McSlash1 won by checkmate"]

1. Nf3 {[%clk 0:04:57.4]} 1... c5 {[%clk 0:04:59.4]} 2. c4 {[%clk 0:04:56.3]}
2... g6 {[%clk 0:04:58.3]} 3. g3 {[%clk 0:04:54.6]} 3... Bg7 {[%clk 0:04:57.9]}
4. Bg2 {[%clk 0:04:53.9]} 4... Nf6 {[%clk 0:04:57.1]} 5. Nc3 {[%clk 0:04:51.7]}
5... O-O {[%clk 0:04:56.6]} 6. d4 {[%clk 0:04:50.9]} 6... cxd4 {[%clk
0:04:56.5]} 7. Nxd4 {[%clk 0:04:49.8]} 7... Nc6 {[%clk 0:04:56.4]} 8. O-O {[%clk
0:04:48.4]} 8... Qc7 {[%clk 0:04:54.7]} 9. Bf4 {[%clk 0:04:44.8]} 9... e5 {[%clk
0:04:49.7]} 10. Ndb5 {[%clk 0:04:43.3]} 10... Qb8 {[%clk 0:04:47.2]} 11. Bg5
{[%clk 0:04:39.3]} 11... a6 {[%clk 0:04:43.1]} 12. Nd6 {[%clk 0:04:30.9]} 12...
Nd4 {[%clk 0:04:41.5]} 13. Bxf6 {[%clk 0:04:24.8]} 13... Bxf6 {[%clk 0:04:38.8]}
14. Nce4 {[%clk 0:04:23.1]} 14... Bg7 {[%clk 0:04:37.3]} 15. c5 {[%clk
0:04:21.1]} 15... f5 {[%clk 0:04:35.1]} 16. Nd2 {[%clk 0:04:17.2]} 16... Ra7
{[%clk 0:04:26.6]} 17. Bd5+ {[%clk 0:04:09.7]} 17... Ne6 {[%clk 0:04:20.5]} 18.
N2c4 {[%clk 0:03:51.6]} 18... Kh8 {[%clk 0:04:11.4]} 19. Nb6 {[%clk 0:03:47.2]}
19... Qc7 {[%clk 0:03:52.7]} 20. b4 {[%clk 0:03:41.5]} 20... a5 {[%clk
0:03:49.6]} 21. a3 {[%clk 0:03:37.3]} 21... e4 {[%clk 0:03:45.6]} 22. Rc1 {[%clk
0:03:25.3]} 22... f4 {[%clk 0:03:40.5]} 23. Qa4 {[%clk 0:03:20.2]} 23... Ra6
{[%clk 0:03:28.5]} 24. Qb5 {[%clk 0:03:08.8]} 24... Nd4 {[%clk 0:03:19.1]} 25.
Qc4 {[%clk 0:03:02.3]} 25... Rxb6 {[%clk 0:03:16.7]} 26. cxb6 {[%clk 0:02:59.3]}
26... Qxd6 {[%clk 0:03:16.1]} 27. Bxe4 {[%clk 0:02:42.8]} 27... Qf6 {[%clk
0:03:05.8]} 28. bxa5 {[%clk 0:02:32.1]} 28... d6 {[%clk 0:02:54.9]} 29. e3
{[%clk 0:02:13.8]} 29... Be6 {[%clk 0:02:47.1]} 30. Qc7 {[%clk 0:02:06.1]} 30...
Bh3 {[%clk 0:02:33.4]} 31. Qc4 {[%clk 0:01:53.5]} 31... Bxf1 {[%clk 0:02:13.1]}
32. Rxf1 {[%clk 0:01:51.5]} 32... Qe5 {[%clk 0:01:21.9]} 33. Qxd4 {[%clk
0:01:33.5]} 33... Qh5 {[%clk 0:01:14.2]} 34. Bxb7 {[%clk 0:01:28.2]} 34... Bxd4
{[%clk 0:01:06.7]} 35. exd4 {[%clk 0:01:26.3]} 35... Qxa5 {[%clk 0:01:03.8]} 36.
Rb1 {[%clk 0:01:20.3]} 36... Rb8 {[%clk 0:00:54.7]} 37. Be4 {[%clk 0:01:15.1]}
37... Rxb6 {[%clk 0:00:52.3]} 38. Rc1 {[%clk 0:01:13.1]} 38... Qxa3 {[%clk
0:00:47.6]} 39. Rc8+ {[%clk 0:01:05.4]} 39... Kg7 {[%clk 0:00:46.7]} 40. Bd5
{[%clk 0:01:01.4]} 40... Qa1+ {[%clk 0:00:40.5]} 41. Kg2 {[%clk 0:01:00]} 41...
Qxd4 {[%clk 0:00:39.8]} 42. Rc7+ {[%clk 0:00:50.3]} 42... Kh6 {[%clk 0:00:38.3]}
43. Bf3 {[%clk 0:00:49.7]} 43... Rb2 {[%clk 0:00:35]} 44. Kh3 {[%clk 0:00:45.5]}
44... Qxf2 {[%clk 0:00:32.7]} 45. Kg4 {[%clk 0:00:44.4]} 45... Rb3 {[%clk
0:00:27.4]} 46. Bd5 {[%clk 0:00:38]} 46... fxg3 {[%clk 0:00:24.9]} 47. Bg8
{[%clk 0:00:34.9]} 47... Qf5+ {[%clk 0:00:24]} 48. Kh4 {[%clk 0:00:32.4]} 48...
Qh5# {[%clk 0:00:22.4]} 0-1

[Event "Live Chess"]
[Site "Chess.com"]
[Date "2023.05.20"]
[Round "-"]
[White "birdseed45"]
[Black "Brooms1989"]
[Result "1-0"]
[WhiteElo "1847"]
[BlackElo "971"]
[TimeControl "300"]
[EndTime "10:11:23 PDT"]
[Termination "birdseed45 won by checkmate"]

1. e4 {[%clk 0:04:58.4]} 1... e5 {[%clk 0:04:58.9]} 2. Nf3 {[%clk 0:04:56.2]}
2... Nc6 {[%clk 0:04:53.3]} 3. Bb5 {[%clk 0:04:55]} 3... a6 {[%clk 0:04:52.1]}
4. Ba4 {[%clk 0:04:53.8]} 4... Nf6 {[%clk 0:04:49.8]} 5. O-O {[%clk 0:04:51.8]}
5... Bc5 {[%clk 0:04:47.7]} 6. c3 {[%clk 0:04:48.9]} 6... b5 {[%clk 0:04:44.2]}
7. Bc2 {[%clk 0:04:47.1]} 7... O-O {[%clk 0:04:41.5]} 8. d4 {[%clk 0:04:44.7]}
8... exd4 {[%clk 0:04:29.8]} 9. cxd4 {[%clk 0:04:44.6]} 9... Bb6 {[%clk
0:04:27.5]} 10. e5 {[%clk 0:04:43.1]} 10... Ne8 {[%clk 0:04:26.2]} 11. Qd3
{[%clk 0:04:40.5]} 11... d6 {[%clk 0:04:22]} 12. Qxh7# {[%clk 0:04:38.5]} 1-0

[Event "Live Chess"]
[Site "Chess.com"]
[Date "2023.05.20"]
[Round "-"]
[White "Pandreq"]
[Black "wot-not"]
[Result "0-1"]
[WhiteElo "1259"]
[BlackElo "1480"]
[TimeControl "300"]
[EndTime "10:11:25 PDT"]
[Termination "wot-not won on time"]

1. d4 {[%clk 0:04:58.7]} 1... Nf6 {[%clk 0:04:58.6]} 2. c4 {[%clk 0:04:57.4]}
2... c5 {[%clk 0:04:57.9]} 3. d5 {[%clk 0:04:56.2]} 3... d6 {[%clk 0:04:56.9]}
4. Nc3 {[%clk 0:04:55.1]} 4... e5 {[%clk 0:04:56.6]} 5. e4 {[%clk 0:04:53.7]}
5... Be7 {[%clk 0:04:56.2]} 6. Be2 {[%clk 0:04:45.6]} 6... Nbd7 {[%clk
0:04:55.9]} 7. Nf3 {[%clk 0:04:44.1]} 7... Nf8 {[%clk 0:04:55]} 8. a3 {[%clk
0:04:41.5]} 8... Ng6 {[%clk 0:04:54.1]} 9. g3 {[%clk 0:04:37.8]} 9... O-O {[%clk
0:04:53.2]} 10. b4 {[%clk 0:04:34.2]} 10... b6 {[%clk 0:04:51.4]} 11. bxc5
{[%clk 0:04:32.3]} 11... bxc5 {[%clk 0:04:50.7]} 12. Nb5 {[%clk 0:04:27.2]}
12... h6 {[%clk 0:04:47.9]} 13. a4 {[%clk 0:04:25.2]} 13... Nh7 {[%clk
0:04:46.2]} 14. O-O {[%clk 0:04:20.1]} 14... a6 {[%clk 0:04:45.3]} 15. Nc3
{[%clk 0:04:14.3]} 15... Ng5 {[%clk 0:04:44]} 16. Bd3 {[%clk 0:03:36.2]} 16...
Bg4 {[%clk 0:04:38.6]} 17. Be2 {[%clk 0:03:31.8]} 17... f5 {[%clk 0:04:26.7]}
18. h4 {[%clk 0:03:19.1]} 18... Nxf3+ {[%clk 0:04:14.4]} 19. Bxf3 {[%clk
0:03:12.9]} 19... Bxf3 {[%clk 0:04:11.5]} 20. Qxf3 {[%clk 0:03:09.4]} 20... f4
{[%clk 0:03:48.6]} 21. Ne2 {[%clk 0:02:52.6]} 21... fxg3 {[%clk 0:03:33.9]} 22.
Qxg3 {[%clk 0:02:42.6]} 22... Nxh4 {[%clk 0:03:13.2]} 23. Bxh6 {[%clk
0:02:16.3]} 23... Rf7 {[%clk 0:02:54.7]} 24. Be3 {[%clk 0:01:29.9]} 24... Nf3+
{[%clk 0:02:44.8]} 25. Kg2 {[%clk 0:01:24.5]} 25... Bh4 {[%clk 0:02:37.7]} 26.
Qh3 {[%clk 0:01:07.6]} 26... Qf6 {[%clk 0:02:21.7]} 27. Ng1 {[%clk 0:01:00.3]}
27... Nxg1 {[%clk 0:01:52.3]} 28. Kxg1 {[%clk 0:00:45.4]} 28... Bg5 {[%clk
0:01:39.5]} 29. Kh1 {[%clk 0:00:22.2]} 29... Qh6 {[%clk 0:01:30.7]} 30. Qxh6
{[%clk 0:00:16.4]} 30... gxh6 {[%clk 0:01:27.9]} 31. Rg1 {[%clk 0:00:14]} 31...
Kh7 {[%clk 0:01:27.2]} 32. Rg3 {[%clk 0:00:10]} 32... Bxe3 {[%clk 0:01:26]} 33.
fxe3 {[%clk 0:00:09]} 33... Raf8 {[%clk 0:01:23.6]} 34. Rag1 {[%clk 0:00:06.6]}
34... h5 {[%clk 0:01:15.5]} 35. Rg6 {[%clk 0:00:05]} 35... Rf6 {[%clk
0:01:13.5]} 36. Rxf6 {[%clk 0:00:02.6]} 36... Rxf6 {[%clk 0:01:12.5]} 37. Kg2
{[%clk 0:00:01.2]} 37... Rg6+ {[%clk 0:01:11.3]} 0-1

[Event "Live Chess"]
[Site "Chess.com"]
[Date "2023.05.20"]
[Round "-"]
[White "kenn48"]
[Black "therealab0ne"]
[Result "1-0"]
[WhiteElo "1335"]
[BlackElo "676"]
[TimeControl "300"]
[EndTime "10:11:32 PDT"]
[Termination "kenn48 won by resignation"]

1. e4 {[%clk 0:04:57.8]} 1... g6 {[%clk 0:04:58.5]} 2. d4 {[%clk 0:04:55.2]}
2... Bg7 {[%clk 0:04:57.8]} 3. c4 {[%clk 0:04:52.8]} 3... d6 {[%clk 0:04:57.3]}
4. Nc3 {[%clk 0:04:50.4]} 4... a6 {[%clk 0:04:56.8]} 5. Nf3 {[%clk 0:04:48.4]}
5... e5 {[%clk 0:04:39.9]} 6. dxe5 {[%clk 0:04:39.3]} 6... dxe5 {[%clk
0:04:22.8]} 7. Qxd8+ {[%clk 0:04:35.1]} 7... Kxd8 {[%clk 0:04:22.4]} 8. Ng5
{[%clk 0:04:10.9]} 8... Nc6 {[%clk 0:04:10.4]} 9. Nxf7+ {[%clk 0:04:02.9]} 9...
Ke8 {[%clk 0:04:05.1]} 10. Nxh8 {[%clk 0:04:01.6]} 10... Nd4 {[%clk 0:04:01.7]}
11. Nd5 {[%clk 0:03:58.9]} 11... Nc2+ {[%clk 0:03:58.4]} 12. Kd2 {[%clk
0:03:56.7]} 12... Nxa1 {[%clk 0:03:57.3]} 13. Nxc7+ {[%clk 0:03:54.9]} 13... Kd7
{[%clk 0:03:41.6]} 14. Nxa8 {[%clk 0:03:51]} 14... Nf6 {[%clk 0:03:34.3]} 15.
Nb6+ {[%clk 0:03:36.1]} 15... Kc7 {[%clk 0:03:30.3]} 16. Nxc8 {[%clk 0:03:34]}
16... Kxc8 {[%clk 0:03:29.4]} 17. Nf7 {[%clk 0:03:27.1]} 17... Nxe4+ {[%clk
0:03:19.8]} 18. Ke3 {[%clk 0:03:24.3]} 18... Nc5 {[%clk 0:02:56.5]} 19. Bd3
{[%clk 0:03:09.7]} 19... e4 {[%clk 0:02:49.4]} 20. Bxe4 {[%clk 0:03:03.8]} 20...
Nxe4 {[%clk 0:02:48.3]} 21. Kxe4 {[%clk 0:03:01.4]} 21... Nc2 {[%clk 0:02:47.5]}
22. Nd6+ {[%clk 0:02:53.9]} 22... Kd7 {[%clk 0:02:44.6]} 23. Rd1 {[%clk
0:02:50.3]} 23... Kc6 {[%clk 0:02:24.1]} 24. Nxb7 {[%clk 0:02:35.2]} 24... Kxb7
{[%clk 0:02:09.9]} 25. Rd7+ {[%clk 0:02:32.2]} 1-0

[Event "Live Chess"]
[Site "Chess.com"]
[Date "2023.05.20"]
[Round "-"]
[White "terrub10"]
[Black "Bob2pen"]
[Result "0-1"]
[WhiteElo "516"]
[BlackElo "1778"]
[TimeControl "300"]
[EndTime "10:11:34 PDT"]
[Termination "Bob2pen won by checkmate"]

1. d4 {[%clk 0:04:57.4]} 1... Nf6 {[%clk 0:04:58.3]} 2. Bg5 {[%clk 0:04:50.6]}
2... c5 {[%clk 0:04:54.8]} 3. Bxf6 {[%clk 0:04:48.6]} 3... gxf6 {[%clk
0:04:53.5]} 4. Nf3 {[%clk 0:04:44.2]} 4... Qb6 {[%clk 0:04:51.7]} 5. dxc5 {[%clk
0:04:35.4]} 5... Qxb2 {[%clk 0:04:50]} 6. Nc3 {[%clk 0:04:27.7]} 6... Qxc3+
{[%clk 0:04:47.7]} 7. Nd2 {[%clk 0:04:18.5]} 7... Bh6 {[%clk 0:04:46.2]} 8. e3
{[%clk 0:04:15.9]} 8... Nc6 {[%clk 0:04:43.3]} 9. Bb5 {[%clk 0:03:54.8]} 9...
Qxc5 {[%clk 0:04:38.2]} 10. Bxc6 {[%clk 0:03:48.4]} 10... Qxc6 {[%clk
0:04:36.4]} 11. O-O {[%clk 0:03:26.6]} 11... b6 {[%clk 0:04:34.6]} 12. h3 {[%clk
0:03:24.4]} 12... Bb7 {[%clk 0:04:32.6]} 13. Qf3 {[%clk 0:03:14.4]} 13... Qxf3
{[%clk 0:04:22.3]} 14. Nxf3 {[%clk 0:03:12.4]} 14... Bxf3 {[%clk 0:04:21.1]} 15.
gxf3 {[%clk 0:03:11]} 15... Rg8+ {[%clk 0:04:20.3]} 16. Kh1 {[%clk 0:03:06.2]}
16... Rc8 {[%clk 0:04:18.8]} 17. Rg1 {[%clk 0:03:03.4]} 17... Rxg1+ {[%clk
0:04:16.4]} 18. Kxg1 {[%clk 0:03:01.8]} 18... Rxc2 {[%clk 0:04:13.7]} 19. f4
{[%clk 0:02:49.3]} 19... d6 {[%clk 0:04:11.8]} 20. a4 {[%clk 0:02:42.1]} 20...
e5 {[%clk 0:04:09.6]} 21. fxe5 {[%clk 0:02:37.4]} 21... fxe5 {[%clk 0:04:08.4]}
22. a5 {[%clk 0:02:35.7]} 22... b5 {[%clk 0:04:03.9]} 23. Rb1 {[%clk 0:02:31.6]}
23... a6 {[%clk 0:04:02]} 24. f4 {[%clk 0:02:25.2]} 24... exf4 {[%clk 0:04:00]}
25. exf4 {[%clk 0:02:23.1]} 25... Bxf4 {[%clk 0:03:59]} 26. Kf1 {[%clk 0:02:19]}
26... Kd7 {[%clk 0:03:54.1]} 27. Ke1 {[%clk 0:02:18.1]} 27... d5 {[%clk
0:03:52.2]} 28. Kd1 {[%clk 0:02:15.9]} 28... Rh2 {[%clk 0:03:49.2]} 29. Rb4
{[%clk 0:02:09.8]} 29... Bd6 {[%clk 0:03:38.8]} 30. Rh4 {[%clk 0:02:00.8]} 30...
Kc6 {[%clk 0:03:34.3]} 31. Rxh7 {[%clk 0:01:59.2]} 31... b4 {[%clk 0:03:33.6]}
32. Kc1 {[%clk 0:01:54.6]} 32... b3 {[%clk 0:03:32.3]} 33. Kb1 {[%clk
0:01:53.2]} 33... Ba3 {[%clk 0:03:28.3]} 34. h4 {[%clk 0:01:46.5]} 34... Rh1#
{[%clk 0:03:26.8]} 0-1

[Event "Live Chess"]
[Site "Chess.com"]
[Date "2023.05.20"]
[Round "-"]
[White "seabuck"]
[Black "JoeyCage"]
[Result "1-0"]
[WhiteElo "1824"]
[BlackElo "2302"]
[TimeControl "300"]
[EndTime "10:11:36 PDT"]
[Termination "seabuck won on time"]

1. d4 {[%clk 0:04:57.7]} 1... g6 {[%clk 0:04:57.3]} 2. c4 {[%clk 0:04:55.5]}
2... Bg7 {[%clk 0:04:56.3]} 3. Nc3 {[%clk 0:04:54.8]} 3... d6 {[%clk 0:04:55]}
4. e4 {[%clk 0:04:53.5]} 4... Nc6 {[%clk 0:04:54]} 5. Be3 {[%clk 0:04:48.5]}
5... e5 {[%clk 0:04:52.8]} 6. dxe5 {[%clk 0:04:36.4]} 6... Nxe5 {[%clk
0:04:50.9]} 7. Be2 {[%clk 0:04:21.1]} 7... Nf6 {[%clk 0:04:48.3]} 8. Qc2 {[%clk
0:04:14.1]} 8... Nfg4 {[%clk 0:04:46.6]} 9. Bd4 {[%clk 0:03:53.4]} 9... c5
{[%clk 0:04:43]} 10. Bxe5 {[%clk 0:03:51.8]} 10... dxe5 {[%clk 0:04:41.8]} 11.
Bxg4 {[%clk 0:03:40.3]} 11... Bxg4 {[%clk 0:04:39.7]} 12. Nge2 {[%clk
0:03:34.6]} 12... O-O {[%clk 0:04:37.5]} 13. Rd1 {[%clk 0:03:30.8]} 13... Qa5
{[%clk 0:04:36]} 14. O-O {[%clk 0:03:25.8]} 14... Rad8 {[%clk 0:04:33.2]} 15. f3
{[%clk 0:03:10.5]} 15... Be6 {[%clk 0:04:28]} 16. b3 {[%clk 0:03:09]} 16... a6
{[%clk 0:04:18.8]} 17. Nd5 {[%clk 0:03:07.2]} 17... b5 {[%clk 0:04:15.8]} 18.
Ne7+ {[%clk 0:02:59]} 18... Kh8 {[%clk 0:04:13.8]} 19. Nc6 {[%clk 0:02:55.4]}
19... Qc7 {[%clk 0:04:06.5]} 20. Nxd8 {[%clk 0:02:52.9]} 20... Rxd8 {[%clk
0:04:05.5]} 21. Rxd8+ {[%clk 0:02:51.7]} 21... Qxd8 {[%clk 0:04:04.8]} 22. Rd1
{[%clk 0:02:49.7]} 22... Qc7 {[%clk 0:04:03.6]} 23. cxb5 {[%clk 0:02:48.4]}
23... axb5 {[%clk 0:04:02.7]} 24. Nc3 {[%clk 0:02:42.3]} 24... c4 {[%clk
0:03:51.7]} 25. Nd5 {[%clk 0:02:36.2]} 25... Qc5+ {[%clk 0:03:49.1]} 26. Kf1
{[%clk 0:02:24.1]} 26... h5 {[%clk 0:03:47.2]} 27. bxc4 {[%clk 0:02:19.3]} 27...
bxc4 {[%clk 0:03:45.9]} 28. Rc1 {[%clk 0:02:10.3]} 28... Bxd5 {[%clk 0:03:43.7]}
29. exd5 {[%clk 0:02:09.2]} 29... Qxd5 {[%clk 0:03:42]} 30. Qxc4 {[%clk
0:02:08.3]} 30... Qd7 {[%clk 0:03:40.1]} 31. Qc8+ {[%clk 0:02:06.2]} 31... Qxc8
{[%clk 0:03:38.8]} 32. Rxc8+ {[%clk 0:02:05.3]} 32... Kh7 {[%clk 0:03:38.7]} 33.
a4 {[%clk 0:02:03.4]} 33... f5 {[%clk 0:03:37]} 34. a5 {[%clk 0:02:01.7]} 34...
e4 {[%clk 0:03:36.3]} 35. fxe4 {[%clk 0:02:00.4]} 35... fxe4 {[%clk 0:03:35.4]}
36. a6 {[%clk 0:01:59.4]} 36... Bd4 {[%clk 0:03:34.2]} 37. a7 {[%clk 0:01:58]}
37... Bxa7 {[%clk 0:03:32.9]} 38. Rc7+ {[%clk 0:01:57.3]} 38... Kh6 {[%clk
0:03:32.8]} 39. Rxa7 {[%clk 0:01:56.2]} 39... Kg5 {[%clk 0:03:32]} 40. Re7
{[%clk 0:01:53.7]} 40... Kf5 {[%clk 0:03:30.7]} 41. Ke2 {[%clk 0:01:52.1]} 41...
g5 {[%clk 0:03:29.7]} 42. Ke3 {[%clk 0:01:51.3]} 42... h4 {[%clk 0:02:55]} 43.
Rxe4 {[%clk 0:01:48.8]} 43... g4 {[%clk 0:02:16.7]} 44. g3 {[%clk 0:01:43.6]}
44... hxg3 {[%clk 0:01:06.8]} 45. hxg3 {[%clk 0:01:41.3]} 45... Kg5 {[%clk
0:00:39.5]} 46. Ra4 {[%clk 0:01:38.6]} 46... Kf5 {[%clk 0:00:22.4]} 47. Ra5+
{[%clk 0:01:35.1]} 47... Kf6 {[%clk 0:00:06.7]} 48. Kf4 {[%clk 0:01:33.3]} 48...
Kg6 {[%clk 0:00:05.6]} 49. Kxg4 {[%clk 0:01:32.2]} 49... Kf6 {[%clk 0:00:03.7]}
50. Kf4 {[%clk 0:01:31.3]} 50... Kg6 {[%clk 0:00:02.5]} 51. g4 {[%clk
0:01:30.5]} 51... Kh6 {[%clk 0:00:01.7]} 52. Ra6+ {[%clk 0:01:29.7]} 1-0

[Event "Live Chess"]
[Site "Chess.com"]
[Date "2023.05.20"]
[Round "-"]
[White "alanmike75"]
[Black "EdenHazard8"]
[Result "0-1"]
[WhiteElo "1483"]
[BlackElo "2114"]
[TimeControl "300"]
[EndTime "10:11:40 PDT"]
[Termination "EdenHazard8 won by resignation"]

1. e4 {[%clk 0:04:59.3]} 1... c6 {[%clk 0:04:59.2]} 2. d4 {[%clk 0:04:58.1]}
2... d5 {[%clk 0:04:59.1]} 3. e5 {[%clk 0:04:56.6]} 3... c5 {[%clk 0:04:57.7]}
4. c3 {[%clk 0:04:55.1]} 4... Nc6 {[%clk 0:04:57]} 5. Nf3 {[%clk 0:04:53.6]}
5... Bg4 {[%clk 0:04:56.5]} 6. Be2 {[%clk 0:04:52.5]} 6... e6 {[%clk 0:04:55.6]}
7. O-O {[%clk 0:04:51]} 7... Nge7 {[%clk 0:04:54.3]} 8. Nbd2 {[%clk 0:04:45.9]}
8... Nf5 {[%clk 0:04:52.4]} 9. Nb3 {[%clk 0:04:43.4]} 9... Bxf3 {[%clk
0:04:50.6]} 10. Bxf3 {[%clk 0:04:42.1]} 10... cxd4 {[%clk 0:04:50.3]} 11. cxd4
{[%clk 0:04:40.9]} 11... Qd7 {[%clk 0:04:50.2]} 12. Bg4 {[%clk 0:04:30.4]} 12...
g6 {[%clk 0:04:46.9]} 13. Bxf5 {[%clk 0:04:28.5]} 13... gxf5 {[%clk 0:04:46.8]}
14. Be3 {[%clk 0:04:25.5]} 14... Rg8 {[%clk 0:04:45.1]} 15. f4 {[%clk
0:04:23.3]} 15... Be7 {[%clk 0:04:42.2]} 16. Kh1 {[%clk 0:04:20.5]} 16... O-O-O
{[%clk 0:04:41.2]} 17. Rc1 {[%clk 0:04:18.2]} 17... Rg4 {[%clk 0:04:39.5]} 18.
Rc2 {[%clk 0:04:09.8]} 18... Rdg8 {[%clk 0:04:37.8]} 19. a3 {[%clk 0:04:08.4]}
19... Kb8 {[%clk 0:04:34.9]} 20. Qd3 {[%clk 0:03:58.3]} 20... a6 {[%clk
0:04:27.7]} 21. Rff2 {[%clk 0:03:39]} 21... h5 {[%clk 0:04:20.8]} 22. Nc5 {[%clk
0:03:33.1]} 22... Bxc5 {[%clk 0:04:19.5]} 23. Rxc5 {[%clk 0:03:31.8]} 23... h4
{[%clk 0:04:18.9]} 24. Rcc2 {[%clk 0:03:14.4]} 24... Na5 {[%clk 0:04:10.5]} 25.
b3 {[%clk 0:03:09.8]} 25... Qb5 {[%clk 0:03:49.1]} 26. Qxb5 {[%clk 0:02:57.3]}
26... axb5 {[%clk 0:03:49]} 27. Rc3 {[%clk 0:02:33.6]} 27... h3 {[%clk
0:03:42.7]} 28. g3 {[%clk 0:02:32]} 28... Rc8 {[%clk 0:03:41.4]} 29. Rfc2 {[%clk
0:02:28]} 29... Rxc3 {[%clk 0:03:37.6]} 30. Rxc3 {[%clk 0:02:26.9]} 30... Rg8
{[%clk 0:03:36.7]} 31. Bd2 {[%clk 0:02:25.1]} 31... Nc6 {[%clk 0:03:33.7]} 32.
Be3 {[%clk 0:02:23.5]} 32... b4 {[%clk 0:03:32.7]} 33. axb4 {[%clk 0:02:16.3]}
33... Nxb4 {[%clk 0:03:32.6]} 34. Kg1 {[%clk 0:02:05.1]} 34... Rc8 {[%clk
0:03:29.3]} 35. Rxc8+ {[%clk 0:01:57.2]} 35... Kxc8 {[%clk 0:03:27.9]} 36. Kf2
{[%clk 0:01:56.1]} 36... Kd7 {[%clk 0:03:26.7]} 37. g4 {[%clk 0:01:54.7]} 37...
fxg4 {[%clk 0:03:20.6]} 38. Kg3 {[%clk 0:01:53.4]} 38... Nc2 {[%clk 0:03:18.1]}
39. Bf2 {[%clk 0:01:48]} 39... Na1 {[%clk 0:03:07.8]} 40. b4 {[%clk 0:01:44.4]}
40... b5 {[%clk 0:02:49.1]} 41. Kxg4 {[%clk 0:01:43.1]} 41... Nc2 {[%clk
0:02:47.4]} 42. Kxh3 {[%clk 0:01:41.8]} 42... Nxb4 {[%clk 0:02:46.9]} 43. Kg4
{[%clk 0:01:39.7]} 43... Nd3 {[%clk 0:02:46.5]} 44. Be3 {[%clk 0:01:29]} 44...
b4 {[%clk 0:02:45.1]} 45. h3 {[%clk 0:01:25.5]} 45... b3 {[%clk 0:02:44.1]} 0-1